bitfinex-derivatives/quotes_BTCF0:USTF0_20210406
["timestamp","ask_amount","ask_price","bid_price","bid_amount"]
[1617727963469,3.51942655,58046.0,58044.0,0.27]
[1617727963869,3.51942655,58046.0,58045.0,0.27]
[1617727964069,3.51942655,58046.0,58044.0,0.27]
[1617727964269,0.25382655,58046.0,58044.0,0.27]
[1617727964470,0.25382655,58046.0,58042.0,0.27]
[1617727964669,0.25382655,58046.0,58045.0,0.27]
[1617727964870,0.25382655,58046.0,58041.0,0.01]
[1617727965070,0.25382655,58046.0,58043.0,0.26]
[1617727965270,0.25382655,58046.0,58042.0,0.89357295]
[1617727965471,0.25382655,58046.0,58042.0,0.02]
[1617727965671,0.25382655,58046.0,58043.0,0.26]
[1617727965870,0.25382655,58046.0,58040.0,0.10725655]
[1617727965871,0.10725655,58046.0,58040.0,0.10725655]
[1617727966071,0.10725655,58046.0,58042.0,0.27]
[1617727966470,0.10725655,58046.0,58041.0,0.01]
[1617727966671,0.10725655,58046.0,58040.0,0.10725655]
[1617727966872,0.10725655,58046.0,58043.0,0.27]
[1617727967071,0.10725655,58046.0,58041.0,0.27]
[1617727967471,0.10725655,58046.0,58044.0,0.27]
[1617727967878,0.10725655,58046.0,58041.0,0.27]
[1617727968079,0.10725655,58046.0,58045.0,0.27]
[1617727968476,0.15895655,58046.0,58041.0,0.27]
[1617727968677,0.10725655,58046.0,58045.0,0.27]
[1617727969078,0.10725655,58046.0,58041.0,0.27]
[1617727969279,0.10725655,58046.0,58045.0,0.27]
[1617727969678,0.10725655,58046.0,58041.0,0.27]
[1617727969878,0.10725655,58046.0,58045.0,0.27]
[1617727970179,0.10725655,58046.0,58040.0,0.10725655]
[1617727970378,0.10725655,58046.0,58041.0,0.27]
[1617727970578,0.10725655,58046.0,58045.0,0.27]
[1617727970778,0.10725655,58046.0,58040.0,0.10725655]
[1617727970978,0.10725655,58046.0,58041.0,0.27]
[1617727971179,0.10725655,58046.0,58045.0,0.27]
[1617727971380,0.10725655,58046.0,58041.0,0.27]
[1617727971779,0.10725655,58046.0,58045.0,0.27]
[1617727971980,0.10725655,58046.0,58041.0,0.27]
[1617727972182,1.0,58069.0,58041.0,0.27]
[1617727972381,1.0,58069.0,58045.0,0.27]
[1617727972581,1.0,58069.0,58043.0,0.56535133]
[1617727972983,1.0,58069.0,58046.0,0.27]
[1617727973181,0.56212498,58104.0,58047.0,0.2]
[1617727973182,1.0,58071.0,58047.0,0.2]
[1617727973380,0.2,58089.0,58065.0,0.10725655]
[1617727973580,0.2,58089.0,58065.0,0.21573655]
[1617727973581,1.0,58079.0,58065.0,0.21573655]
[1617727974183,1.0,58079.0,58065.0,0.21353655]
[1617727974383,1.0,58079.0,58065.0,0.17773655]
[1617727975484,0.10725655,58066.0,58065.0,0.06925655]
[1617727979193,0.10725655,58066.0,58059.0,0.5047299]
[1617727979392,1.5,58088.0,58056.0,0.61151028]
[1617727979393,0.04611127,58060.0,58056.0,0.61151028]
[1617727979793,0.04611127,58060.0,58056.0,0.10725655]
[1617727979993,0.04611127,58060.0,58057.0,0.27]
[1617727980794,0.04611127,58060.0,58058.0,0.44349144]
[1617727981195,0.04611127,58060.0,58059.0,0.27]
[1617727982496,0.04611127,58060.0,58056.0,0.10725655]
[1617727982497,0.04611127,58060.0,58057.0,0.27]
[1617727982696,3.69621127,58060.0,58057.0,0.27]
[1617727982896,3.69621127,58060.0,58056.0,0.10725655]
[1617727982897,3.69621127,58060.0,58059.0,0.27]
[1617727983096,3.69621127,58060.0,58057.0,0.27]
[1617727983496,3.69621127,58060.0,58059.0,0.27]
[1617727983697,3.69621127,58060.0,58057.0,0.27]
[1617727984097,3.69621127,58060.0,58059.0,0.27]
[1617727984303,3.69621127,58060.0,58057.0,0.27]
[1617727984698,3.69621127,58060.0,58059.0,0.27]
[1617727984900,3.74831127,58060.0,58057.0,0.27]
[1617727985098,3.6501,58060.0,58057.0,0.27]
[1617727985301,3.6501,58060.0,58059.0,0.27]
[1617727985499,3.6501,58060.0,58056.0,0.10725655]
[1617727985700,3.6501,58060.0,58057.0,0.27]
[1617727985900,3.6501,58060.0,58059.0,0.27]
[1617727986100,3.6501,58060.0,58056.0,0.10725655]
[1617727986101,3.7011,58060.0,58056.0,0.10725655]
[1617727986300,3.7011,58060.0,58057.0,0.27]
[1617727986501,3.7011,58060.0,58059.0,0.27]
[1617727986708,0.051,58060.0,58056.0,1.10725655]
[1617727986905,0.051,58060.0,58059.0,1.0]
[1617727987304,0.051,58060.0,58059.0,1.27]
[1617727987504,0.051,58060.0,58059.0,1.3223]
[1617727987903,0.051,58060.0,58059.0,1.27]
[1617727989314,0.051,58060.0,58059.0,1.3215]
[1617727989509,0.051,58060.0,58059.0,0.27]
[1617727989711,0.051,58060.0,58059.0,0.2638]
[1617727989910,2.6246,58062.0,58057.0,0.27]
[1617727990311,2.6246,58062.0,58059.0,0.27]
[1617727990509,2.6246,58062.0,58057.0,0.2645]
[1617727990909,2.6246,58062.0,58056.0,0.10725655]
[1617727990910,2.6246,58062.0,58060.0,0.27]
[1617727991111,2.6246,58062.0,58058.0,0.27]
[1617727991511,2.6246,58062.0,58061.0,0.27]
[1617727991712,2.6246,58062.0,58059.0,0.27]
[1617727992117,2.6246,58062.0,58061.0,0.25]
[1617727992314,2.6762,58062.0,58060.0,0.27]
[1617727992712,2.6762,58062.0,58061.0,0.22]
[1617727992911,2.6762,58062.0,58056.0,0.10725655]
[1617727993314,2.6762,58062.0,58059.0,0.27]
[1617727993512,2.6246,58062.0,58057.0,0.01]
[1617727993711,2.6246,58062.0,58056.0,0.10725655]
[1617727993912,2.6246,58062.0,58060.0,0.27]
[1617727994113,0.10725655,58063.0,58057.0,0.27]
[1617727994314,0.10725655,58063.0,58056.0,0.10725655]
[1617727994514,0.052,58062.0,58061.0,0.27]
[1617727994714,0.10725655,58063.0,58061.0,0.37725]
[1617727994917,0.10725655,58063.0,58061.0,0.10725]
[1617727995115,0.10725655,58063.0,58062.0,0.27]
[1617727995517,0.10725655,58063.0,58062.0,0.37725655]
[1617727996517,0.10725655,58063.0,58062.0,0.42955655]
[1617727997318,0.10725655,58063.0,58062.0,0.37725655]
[1617727998117,0.10725655,58063.0,58062.0,0.27]
[1617727998517,0.10725655,58063.0,58051.0,0.27]
[1617727998918,0.10725655,58063.0,58062.0,0.27]
[1617727999118,3.81305655,58063.0,58047.0,0.01]
[1617727999517,3.7058,58063.0,58062.0,0.27]
[1617727999718,3.7058,58063.0,58058.0,0.10725655]
[1617727999917,3.7058,58063.0,58059.0,0.01]
[1617728001522,0.10725655,58060.0,58059.0,0.01]
[1617728001922,0.10725655,58060.0,58053.0,0.27]
[1617728002321,0.10725655,58060.0,58059.0,0.01]
[1617728002521,0.10725655,58060.0,58059.0,0.1293]
[1617728002922,0.10725655,58060.0,58059.0,0.3993]
[1617728005624,0.10725655,58060.0,58059.0,0.50655655]
[1617728008427,0.10725655,58060.0,58059.0,0.55865655]
[1617728008829,0.15925655,58060.0,58059.0,0.50655655]
[1617728009029,0.10725655,58060.0,58059.0,0.50655655]
[1617728010631,0.36179151,58086.0,58059.0,1.50655655]
[1617728010830,0.36179151,58086.0,58060.0,0.2]
[1617728011030,0.36179151,58086.0,58063.0,1.0]
[1617728011233,0.36205197,58090.0,58063.0,1.0]
[1617728011432,0.36205197,58090.0,58064.0,0.01]
[1617728011633,0.36205197,58090.0,58075.0,0.10725655]
[1617728011832,0.36205197,58090.0,58075.0,0.24136655]
[1617728012033,0.36205197,58090.0,58076.0,0.27]
[1617728012634,1.36205197,58090.0,58076.0,0.27]
[1617728013038,0.36265871,58089.0,58076.0,0.27]
[1617728013438,0.36273629,58088.0,58076.0,0.27]
[1617728013837,0.10725655,58077.0,58076.0,0.27]
[1617728016842,0.36281553,58091.0,58076.0,0.27]
[1617728017043,0.36281553,58091.0,58076.0,1.27]
[1617728017243,0.36288371,58093.0,58076.0,1.27]
[1617728017443,0.36288371,58093.0,58076.0,0.27]
[1617728018043,0.36464628,58083.0,58076.0,0.27]
[1617728018442,0.36464628,58083.0,58074.0,0.27]
[1617728018644,0.36464628,58083.0,58067.0,1.0]
[1617728018842,0.36464628,58083.0,58069.0,1.0]
[1617728019043,0.36460375,58082.0,58075.0,0.27]
[1617728019243,0.36460375,58082.0,58064.0,1.0]
[1617728019442,0.36460375,58082.0,58070.0,0.27]
[1617728019643,0.36460375,58082.0,58076.0,0.27]
[1617728020044,1.5,58081.0,58056.0,1.0]
[1617728020245,1.86462658,58081.0,58052.0,0.71040714]
[1617728020446,1.0,58059.0,58052.0,0.71040714]
[1617728020646,1.11418,58059.0,58038.0,0.7104926]
[1617728021048,1.11418,58059.0,58035.0,0.71051662]
[1617728021246,1.0,58054.0,58035.0,0.71051662]
[1617728021447,1.0,58051.0,58039.0,0.27]
[1617728021649,2.6753,58040.0,58033.0,0.27]
[1617728021848,0.10725655,58034.0,58031.0,0.71058504]
[1617728022049,0.10725655,58034.0,58029.0,0.10725655]
[1617728022448,0.10725655,58034.0,58032.0,0.27]
[1617728022649,0.10725655,58034.0,58030.0,0.27]
[1617728022849,0.10725655,58034.0,58029.0,0.10725655]
[1617728023050,0.15905655,58034.0,58033.0,0.27]
[1617728023248,0.10725655,58034.0,58030.0,0.27]
[1617728023451,0.10725655,58034.0,58029.0,0.10725655]
[1617728023852,0.10725655,58034.0,58030.0,0.27]
[1617728034102,0.10725655,58034.0,58030.0,0.27]
[1617728034704,0.10725655,58034.0,58032.0,1.0]
[1617728035205,0.10725655,58034.0,58033.0,0.27]
[1617728035803,0.36179366,58057.0,58033.0,1.27]
[1617728036054,0.36179366,58057.0,58025.0,0.29979]
[1617728036055,0.3618794,58058.0,58048.0,0.10725655]
[1617728036327,0.3618794,58058.0,58048.0,0.22807655]
[1617728036605,0.3621394,58062.0,58048.0,0.22807655]
[1617728037005,0.36200805,58060.0,58048.0,0.22807655]
[1617728037204,0.46189805,58060.0,58048.0,0.10725655]
[1617728037804,0.46189805,58060.0,58028.0,1.0]
[1617728037805,1.0,58057.0,58028.0,1.0]
[1617728038004,1.0,58053.0,58034.0,0.10725655]
[1617728038404,3.64585,58035.0,58029.0,0.27]
[1617728038604,3.64585,58035.0,58021.0,0.27]
[1617728038804,3.64585,58035.0,58034.0,0.01]
[1617728039004,3.64585,58035.0,58030.0,0.27]
[1617728039206,3.64585,58035.0,58021.0,0.27]
[1617728039404,3.64585,58035.0,58034.0,0.01]
[1617728039604,3.64585,58035.0,58031.0,0.26]
[1617728039806,3.64585,58035.0,58021.0,0.27]
[1617728040006,0.10725655,58032.0,58025.0,0.10725655]
[1617728040504,0.10725655,58032.0,58026.0,0.26]
[1617728042005,0.10725655,58032.0,58031.0,0.10725655]
[1617728042504,0.10725655,58032.0,58031.0,0.11725655]
[1617728042706,0.10725655,58032.0,58031.0,0.26826655]
[1617728043309,0.10623706,58032.0,58031.0,0.26826655]
[1617728043606,1.36120807,58061.0,58031.0,1.26826655]
[1617728043607,3.2527,58058.0,58031.0,1.26826655]
[1617728043813,3.2527,58058.0,58036.0,1.0]
[1617728044107,3.2527,58058.0,58046.0,0.10725655]
[1617728045510,3.61414671,58058.0,58046.0,0.10725655]
[1617728045811,0.36144671,58058.0,58046.0,0.10725655]
[1617728046026,0.36144671,58058.0,58057.0,0.10725655]
[1617728046512,0.36177664,58063.0,58057.0,0.10725655]
[1617728046916,0.44214913,58067.0,58057.0,0.10725655]
[1617728046917,0.36190682,58067.0,58057.0,0.10725655]
[1617728047315,0.36188789,58068.0,58057.0,0.10725655]
[1617728048014,0.36188789,58068.0,58064.0,0.10725655]
[1617728048215,0.36188789,58068.0,58064.0,0.21737655]
[1617728048415,0.36205654,58069.0,58064.0,0.21737655]
[1617728048715,2.7802,58065.0,58064.0,0.21737655]
[1617728049429,0.36205654,58069.0,58064.0,0.21737655]
[1617728049615,0.36205654,58069.0,58064.0,1.21737655]
[1617728049817,0.36221837,58074.0,58065.0,0.27]
[1617728050115,0.36221837,58074.0,58073.0,0.10725655]
[1617728050317,0.36241554,58077.0,58073.0,0.10725655]
[1617728050717,0.36247804,58078.0,58073.0,0.10725655]
[1617728051319,0.49068884,58080.0,58073.0,0.10725655]
[1617728051518,0.1281,58080.0,58073.0,0.10725655]
[1617728052219,0.10725655,58074.0,58073.0,0.10725655]
[1617728053722,0.15945655,58074.0,58073.0,0.10725655]
[1617728054723,3.16332655,58074.0,58050.0,1.0]
[1617728055321,3.16332655,58074.0,58051.0,0.27]
[1617728056221,3.05607,58074.0,58063.0,0.10725655]
[1617728056622,3.05607,58074.0,58064.0,0.27]
[1617728056943,3.05607,58074.0,58064.0,0.39546]
[1617728057124,3.00387,58074.0,58064.0,0.39546]
[1617728058228,0.10725655,58065.0,58064.0,0.39546]
[1617728070147,0.10725655,58065.0,58064.0,0.27]
[1617728072539,0.10725655,58065.0,58064.0,1.27]
[1617728073141,0.10725655,58065.0,58064.0,0.27]
[1617728074841,0.10725655,58065.0,58064.0,0.2439]
[1617728077746,0.26568655,58065.0,58064.0,0.2439]
[1617728081651,0.10725655,58065.0,58064.0,0.2439]
[1617728082351,0.10725655,58065.0,58064.0,0.34893]
[1617728085754,0.15825655,58065.0,58064.0,0.34893]
[1617728086754,0.10725655,58065.0,58064.0,0.34893]
[1617728088356,3.47485655,58065.0,58064.0,0.34893]
[1617728089258,3.47485655,58065.0,58064.0,1.34893]
[1617728089758,3.47485655,58065.0,58064.0,0.34893]
[1617728089958,3.52665655,58065.0,58064.0,0.34893]
[1617728090158,3.52665655,58065.0,58064.0,0.2091]
[1617728090558,3.52665655,58065.0,58064.0,0.1832]
[1617728090758,3.52665655,58065.0,58064.0,0.1819]
[1617728091358,3.52665655,58065.0,58064.0,0.1742]
[1617728092058,3.47485655,58065.0,58064.0,0.1742]
[1617728093059,3.47485655,58065.0,58064.0,0.1689]
[1617728094960,3.47485655,58065.0,58064.0,0.0822]
[1617728095260,3.47485655,58065.0,58064.0,0.0503]
[1617728105872,3.83829876,58065.0,58064.0,0.0503]
[1617728112285,3.89009876,58065.0,58064.0,0.0503]
[1617728112485,3.89009876,58065.0,58064.0,0.0244]
[1617728113187,3.83829876,58065.0,58064.0,0.0244]
[1617728121500,3.83829876,58065.0,58054.0,0.5701966]
[1617728121703,4.99640876,58065.0,58053.0,0.57022466]
[1617728122302,1.0,58057.0,58054.0,0.27]
[1617728122705,1.0,58057.0,58041.0,0.463]
[1617728122706,0.47004711,58055.0,58046.0,0.27]
[1617728122901,0.47004711,58055.0,58043.0,0.01]
[1617728122902,0.47004711,58055.0,58042.0,0.10725655]
[1617728123305,0.47004711,58055.0,58043.0,0.27]
[1617728124706,0.10725655,58044.0,58043.0,0.27]
[1617728132717,0.15865655,58044.0,58043.0,0.27]
[1617728133217,0.10725655,58044.0,58043.0,0.27]
[1617728134418,0.10725655,58044.0,58043.0,0.83944816]
[1617728135120,0.10725655,58044.0,58043.0,0.27]
[1617728156863,0.15915655,58044.0,58043.0,0.27]
[1617728157059,0.10725655,58044.0,58043.0,0.27]
[1617728157859,3.48195655,58044.0,58043.0,0.27]
[1617728159561,3.53315655,58044.0,58043.0,0.27]
[1617728159762,3.48195655,58044.0,58043.0,0.27]
[1617728162165,0.10725655,58044.0,58043.0,0.27]
[1617728163477,0.10725655,58044.0,58043.0,0.77812746]
[1617728168875,0.10725655,58044.0,58043.0,1.34735768]
[1617728169373,0.10725655,58044.0,58043.0,0.77812746]
[1617728170474,0.10725655,58044.0,58043.0,1.34736115]
[1617728172178,0.10725655,58044.0,58043.0,0.77812746]
[1617728172580,0.10725655,58044.0,58043.0,1.34735658]
[1617728173678,0.36341231,58060.0,58043.0,1.34735658]
[1617728174284,1.0,58069.0,58054.0,0.64903207]
[1617728174285,0.36351281,58062.0,58054.0,0.64903207]
[1617728174480,0.36351281,58062.0,58055.0,0.27]
[1617728174680,0.44427101,58067.0,58055.0,0.27]
[1617728174681,0.36357678,58063.0,58055.0,0.77820246]
[1617728175080,0.36357678,58063.0,58060.0,0.10725655]
[1617728175380,0.36357678,58063.0,58061.0,0.27]
[1617728176983,0.10725655,58062.0,58061.0,0.27]
[1617728179189,0.47153676,58062.0,58061.0,0.27]
[1617728179989,0.71177416,58062.0,58061.0,0.27]
[1617728186101,0.10725655,58062.0,58061.0,0.77909052]
[1617728186502,0.3642197,58064.0,58061.0,0.77909052]
[1617728186706,0.3642197,58064.0,58063.0,2.6522]
[1617728187119,0.36442547,58067.0,58063.0,4.43125521]
[1617728187318,0.36442547,58067.0,58063.0,3.43125521]
[1617728187502,0.36444862,58068.0,58063.0,3.52299154]
[1617728187816,0.36453104,58070.0,58066.0,0.50905075]
[1617728188003,0.36453104,58070.0,58066.0,0.66433075]
[1617728188210,0.36453104,58070.0,58069.0,0.50903861]
[1617728188603,0.36453104,58070.0,58069.0,0.27]
[1617728188912,0.36453104,58070.0,58067.0,0.50903624]
[1617728188913,0.36453104,58070.0,58068.0,0.01]
[1617728189102,0.36453104,58070.0,58069.0,0.10725655]
[1617728189303,0.36453104,58070.0,58069.0,0.36725655]
[1617728190905,0.80982645,58070.0,58069.0,0.36725655]
[1617728191204,0.36453104,58070.0,58069.0,0.36725655]
[1617728193104,0.36453104,58070.0,58069.0,0.47151655]
[1617728194710,0.47145786,58071.0,58069.0,0.47151655]
[1617728196814,0.36409139,58070.0,58069.0,0.47151655]
[1617728199917,0.47137987,58071.0,58069.0,0.47151655]
[1617728200416,0.36411519,58070.0,58069.0,0.47151655]
[1617728203119,0.4710115,58071.0,58069.0,0.47151655]
[1617728211030,0.0513,58070.0,58069.0,0.36725655]
[1617728211929,0.4710115,58071.0,58069.0,0.36725655]
[1617728212133,0.4710115,58071.0,58069.0,0.32425655]
[1617728213234,0.4710115,58071.0,58069.0,0.46078655]
[1617728214031,0.36402343,58070.0,58069.0,0.46078655]
[1617728214531,0.4713053,58071.0,58069.0,0.46078655]
[1617728216036,0.0509,58070.0,58069.0,0.46078655]
[1617728216437,0.4713053,58071.0,58069.0,0.46078655]
[1617728217438,0.4713053,58071.0,58069.0,0.32425655]
[1617728218240,0.36399153,58070.0,58069.0,0.32425655]
[1617728219039,0.53507589,58070.0,58069.0,0.32425655]
[1617728219539,0.58597589,58070.0,58069.0,0.32425655]
[1617728219739,0.53507589,58070.0,58069.0,0.32425655]
[1617728220741,0.47125964,58071.0,58069.0,0.32425655]
[1617728220943,0.47125964,58071.0,58069.0,0.48025655]
[1617728221443,0.10725655,58071.0,58069.0,0.48025655]
[1617728223143,0.0513,58070.0,58069.0,0.48025655]
[1617728223547,2.5795,58070.0,58069.0,0.48025655]
[1617728223946,2.5282,58070.0,58069.0,0.48025655]
[1617728224746,2.5282,58070.0,58069.0,0.26]
[1617728224969,3.06369893,58070.0,58069.0,0.26]
[1617728225244,0.53549893,58070.0,58065.0,0.27]
[1617728225446,0.53549893,58070.0,58069.0,0.26]
[1617728225646,0.36385091,58068.0,58063.0,0.26]
[1617728225963,0.36385091,58068.0,58065.0,0.03]
[1617728226158,3.359,58066.0,58062.0,0.50837392]
[1617728226365,3.359,58066.0,58063.0,0.2472]
[1617728226563,3.359,58066.0,58052.0,0.56941204]
[1617728226986,3.359,58066.0,58045.0,0.0512]
[1617728226987,1.36361877,58064.0,58049.0,0.56942278]
[1617728227196,1.0,58062.0,58049.0,0.56942278]
[1617728227450,0.27147655,58050.0,58049.0,0.49392278]
[1617728227850,0.27147655,58050.0,58043.0,0.4827]
[1617728228251,0.27147655,58050.0,58041.0,0.09285655]
[1617728228555,0.27147655,58050.0,58044.0,0.27]
[1617728228775,1.0,58047.0,58044.0,0.27]
[1617728229055,0.27147655,58050.0,58041.0,0.09285655]
[1617728229056,1.0,58049.0,58041.0,0.09285655]
[1617728229350,0.21937655,58050.0,58041.0,0.09285655]
[1617728229351,0.10725655,58042.0,58041.0,0.09285655]
[1617728229751,0.10725655,58042.0,58041.0,0.36285655]
[1617728238064,0.10623709,58042.0,58041.0,0.93224096]
[1617728239064,3.24723709,58042.0,58041.0,0.93224096]
[1617728241468,3.37373709,58042.0,58041.0,1.44053264]
[1617728241665,3.37373709,58042.0,58041.0,1.17053264]
[1617728242366,3.37373709,58042.0,58041.0,0.50829168]
[1617728244867,0.23273709,58042.0,58041.0,0.50829168]
[1617728245770,1.23273709,58042.0,58041.0,0.50829168]
[1617728246069,0.23273709,58042.0,58041.0,0.55959168]
[1617728246369,0.23273709,58042.0,58041.0,0.50829168]
[1617728247869,1.23273709,58042.0,58041.0,0.50829168]
[1617728248670,1.28383709,58042.0,58041.0,0.50829168]
[1617728248871,1.23273709,58042.0,58039.0,0.50773497]
[1617728249370,1.23273709,58042.0,58038.0,0.50774259]
[1617728249572,0.23273709,58042.0,58038.0,0.50774259]
[1617728249770,0.23273709,58042.0,58027.0,0.10725655]
[1617728249771,1.0,58039.0,58037.0,0.50774836]
[1617728249970,1.0,58039.0,58038.0,0.27]
[1617728250371,1.0,58039.0,58038.0,0.50774879]
[1617728250570,1.0,58039.0,58038.0,0.77774879]
[1617728250970,1.0,58039.0,58037.0,0.50774981]
[1617728251270,1.0,58039.0,58038.0,0.27]
[1617728252171,1.0,58039.0,58036.0,0.50759978]
[1617728252371,1.0,58039.0,58037.0,0.26]
[1617728252773,0.23273709,58042.0,58035.0,0.50759731]
[1617728252973,0.23273709,58042.0,58036.0,0.26]
[1617728253873,1.0,58037.0,58036.0,0.26]
[1617728254274,0.23273709,58042.0,58036.0,0.26]
[1617728255277,0.0512,58041.0,58036.0,0.26]
[1617728255776,0.0512,58041.0,58033.0,0.50694319]
[1617728256076,0.23273709,58042.0,58033.0,0.76694319]
[1617728256276,1.0,58036.0,58033.0,0.50694319]
[1617728256776,1.0,58036.0,58034.0,0.27]
[1617728256976,1.0,58036.0,58033.0,0.01]
[1617728257381,1.0,58036.0,58035.0,0.26]
[1617728257579,1.0,58036.0,58033.0,0.27]
[1617728257880,1.0,58036.0,58032.0,0.26]
[1617728258582,1.0,58035.0,58032.0,0.2583]
[1617728258881,1.0,58034.0,58030.0,0.50696573]
[1617728259081,0.0524,58036.0,58033.0,0.26]
[1617728259482,1.0,58032.0,58031.0,0.27]
[1617728259682,1.0,58032.0,58030.0,0.26]
[1617728260083,1.0,58032.0,58029.0,0.50697376]
[1617728260084,1.0,58032.0,58031.0,0.26]
[1617728260283,0.10725655,58034.0,58030.0,0.27]
[1617728260584,1.0,58031.0,58029.0,0.51697578]
[1617728260984,1.0,58031.0,58029.0,0.50697578]
[1617728261184,1.0,58031.0,58030.0,0.0518]
[1617728261383,1.0,58031.0,58030.0,0.27]
[1617728261586,1.0,58032.0,58030.0,0.27]
[1617728261785,0.0512,58031.0,58030.0,0.27]
[1617728261985,1.0,58033.0,58030.0,0.27]
[1617728262785,1.0,58033.0,58030.0,0.77699203]
[1617728262988,1.0,58033.0,58031.0,0.0524]
[1617728263387,1.10725655,58034.0,58032.0,0.01]
[1617728263887,1.10725655,58034.0,58031.0,0.27]
[1617728264188,1.10725655,58034.0,58030.0,0.01]
[1617728264487,1.10725655,58034.0,58032.0,0.26]
[1617728264888,1.10725655,58034.0,58030.0,0.27]
[1617728265189,1.0,58033.0,58032.0,0.27]
[1617728265488,1.0,58033.0,58030.0,0.27]
[1617728265890,1.0,58033.0,58032.0,0.27]
[1617728266089,1.0,58033.0,58029.0,0.26]
[1617728266289,1.0,58033.0,58031.0,0.01]
[1617728266490,1.0,58033.0,58032.0,0.27]
[1617728266889,1.0,58033.0,58030.0,0.26]
[1617728267189,0.10725655,58034.0,58019.0,1.15833226]
[1617728267190,1.10725655,58034.0,58028.0,0.76669431]
[1617728267400,1.10725655,58034.0,58031.0,0.26]
[1617728267597,0.10725655,58034.0,58031.0,0.26]
[1617728267793,0.10725655,58034.0,58030.0,0.02]
[1617728267794,0.10725655,58034.0,58029.0,0.27]
[1617728268012,0.10725655,58034.0,58032.0,0.26]
[1617728268421,0.10725655,58034.0,58029.0,0.27]
[1617728268608,0.10725655,58034.0,58033.0,0.27]
[1617728268999,0.10725655,58034.0,58030.0,0.50668287]
[1617728269000,0.10725655,58034.0,58031.0,0.27]
[1617728269391,0.10725655,58034.0,58033.0,0.26]
[1617728269592,0.10725655,58034.0,58031.0,0.27]
[1617728270996,0.10725655,58034.0,58031.0,0.77667384]
[1617728271494,0.10725655,58034.0,58032.0,0.50667592]
[1617728271694,0.10725655,58034.0,58032.0,0.77667592]
[1617728271896,0.10725655,58034.0,58025.0,0.10725655]
[1617728271897,0.10725655,58034.0,58031.0,0.50667288]
[1617728272298,0.10725655,58034.0,58033.0,0.27]
[1617728272500,0.10725655,58034.0,58032.0,0.01]
[1617728272700,0.10725655,58034.0,58030.0,0.50667245]
[1617728272901,0.10725655,58034.0,58033.0,0.27]
[1617728273101,0.10725655,58034.0,58032.0,0.27]
[1617728273299,0.10725655,58034.0,58032.0,0.50666753]
[1617728273500,0.10725655,58034.0,58032.0,0.61392408]
[1617728273701,0.10725655,58034.0,58033.0,0.77666525]
[1617728274299,0.10725655,58034.0,58033.0,0.27]
[1617728274800,0.10725655,58034.0,58033.0,0.77695517]
[1617728277415,0.10725655,58034.0,58033.0,0.27]
[1617728277803,0.10725655,58034.0,58031.0,0.50694999]
[1617728278206,0.10725655,58034.0,58033.0,0.27]
[1617728278404,0.10725655,58034.0,58032.0,0.77706867]
[1617728278806,0.10725655,58034.0,58033.0,0.26]
[1617728279706,0.10725655,58034.0,58032.0,0.01]
[1617728279906,0.10725655,58034.0,58033.0,0.26]
[1617728280407,0.10725655,58034.0,58032.0,0.27]
[1617728280606,1.10725655,58034.0,58033.0,0.27]
[1617728280809,0.10725655,58034.0,58033.0,0.27]
[1617728281006,0.10725655,58034.0,58032.0,0.27]
[1617728281407,0.10725655,58034.0,58032.0,0.2617]
[1617728281606,0.10725655,58034.0,58030.0,0.50709347]
[1617728282007,0.10725655,58034.0,58033.0,0.27]
[1617728282207,0.10725655,58034.0,58031.0,0.27]
[1617728282607,0.10725655,58034.0,58033.0,0.27]
[1617728282807,0.10725655,58034.0,58031.0,0.27]
[1617728283208,0.10725655,58034.0,58033.0,0.27]
[1617728283409,0.10725655,58034.0,58032.0,0.01]
[1617728283608,0.10725655,58034.0,58032.0,0.51708997]
[1617728284208,0.10725655,58034.0,58033.0,0.50708643]
[1617728284408,0.10725655,58034.0,58033.0,0.51708643]
[1617728284607,0.10725655,58034.0,58032.0,0.50708579]
[1617728285008,0.10725655,58034.0,58033.0,0.01]
[1617728285508,0.10725655,58034.0,58033.0,0.51810463]
[1617728285809,0.10725655,58034.0,58033.0,0.50810463]
[1617728286207,0.10725655,58034.0,58033.0,0.77810463]
[1617728287710,0.10725655,58034.0,58033.0,0.88536118]
[1617728290818,0.10725655,58034.0,58033.0,1.4545821]
[1617728292522,0.10725655,58034.0,58033.0,2.4545821]
[1617728292722,0.36022585,58055.0,58033.0,2.4545821]
[1617728292925,0.36022585,58055.0,58033.0,1.4545821]
[1617728293124,0.36066746,58053.0,58048.0,0.50875557]
[1617728293324,0.36066746,58053.0,58048.0,0.64519557]
[1617728293624,0.36068863,58054.0,58050.0,0.10725655]
[1617728294724,0.36058091,58052.0,58050.0,0.10725655]
[1617728295125,0.60713623,58057.0,58050.0,0.10725655]
[1617728295126,0.52705068,58053.0,58050.0,0.10725655]
[1617728295525,1.0,58062.0,58050.0,0.10725655]
[1617728295526,0.52696745,58051.0,58050.0,0.10725655]
[1617728295725,0.634224,58051.0,58050.0,0.10725655]
[1617728295926,0.10725655,58051.0,58050.0,0.10725655]
[1617728298826,0.10725655,58051.0,58048.0,0.64519625]
[1617728299527,0.10725655,58051.0,58016.0,0.2]
[1617728299528,0.10725655,58051.0,58047.0,0.50874826]
[1617728299927,0.0514,58050.0,58045.0,0.50859433]
[1617728300128,1.0,58050.0,58045.0,0.50859433]
[1617728300328,1.49339179,58050.0,58044.0,0.50860477]
[1617728300827,0.36078542,58049.0,58043.0,0.50860216]
[1617728301228,1.0,58050.0,58044.0,0.508603]
[1617728301629,1.0,58050.0,58043.0,0.50860862]
[1617728301630,0.10725655,58045.0,58043.0,0.50860862]
[1617728302027,0.10725655,58045.0,58034.0,0.6768982]
[1617728302028,0.10725655,58045.0,58044.0,0.50860828]
[1617728307033,0.10725655,58045.0,58026.0,1.18599745]
[1617728307034,0.10725655,58045.0,58042.0,0.50872917]
[1617728307231,0.24540655,58045.0,58042.0,0.50872917]
[1617728307431,0.24540655,58045.0,58041.0,0.50873024]